Cogmind - Beta 9.4 *** ADVENTURER MODE // 2020.08.16 @ 18:26:26 Player: Scyralis Result: Self-destructed Performance ------------- Evolutions (4) 2000 Regions Visited (7) 1400 Robots Destroyed (224) 1120 Value Destroyed (7313) 7313 Prototype IDs (33) 660 Alien Tech Used (0) 0 Bonus (1275) 1275 TOTAL SCORE: 13768 Bonus ------- High Alert Combat Kills 460 Follower Combat Kills 1329 Friendly Fire -514 Cogmind --------- Core Integrity 708/850 Matter 442/550 Energy 500/500 System Corruption 0% Temperature Cool (0) Movement Treading (160) Location -6/Cetus Parts ------- > --- POWER (1) -------- F-cell Engine > --- PROPULSION (2) --- Centrium Heavy Treads > --- UTILITY (8) ------ Improved Cooling System Large Storage Unit Matter Compressor Enhanced Optical Array Improved Salvage Targeting Computer Experimental Targeting Computer Core Analyzer Weapon Cycler > --- WEAPON (4) ------- Autogun Enhanced Autogun > --- INVENTORY (10) --- Neutrino Core Matter Compressor (250) Advanced Weight Redist. System Weapon Cycler Weapon Cycler Phase Shifter Centrium Medium Armor Plating Improved Hardlight Generator Long-range Tractor Beam Peak State ------------ > --- POWER ------------ F-cell Engine > --- PROPULSION ------- Centrium Heavy Treads > --- UTILITY ---------- Improved Cooling System Large Storage Unit Matter Compressor Enhanced Optical Array Improved Salvage Targeting Computer Experimental Targeting Computer Core Analyzer Weapon Cycler > --- WEAPON ----------- Autogun Battle Rifle Enhanced Autogun Heavy Machine Gun > --- INVENTORY -------- Neutrino Core Matter Compressor Advanced Weight Redist. System Weapon Cycler Weapon Cycler Phase Shifter Centrium Medium Armor Plating Improved Hardlight Generator Long-range Tractor Beam [Rating: 73] Favorites ----------- Power Cooled Ion Engine Engine Cooled Ion Engine Propulsion Light Treads Treads Light Treads Leg Carbon-fiber Leg Utility Large Storage Unit Device Weapon Cycler Storage Large Storage Unit Processor Improved Salvage Targeting Computer Protection Hardened Medium Armor Plating Weapon Autogun Energy Cannon Light EM Pulse Cannon Ballistic Gun Autogun Launcher Heavy Rocket Launcher Build | -11 -10 -9 -8 -7 -6 -6 -6 ------- Run | Scr Mat Mat Mat Fac Fac Ext Cet Slots Evolved 8 | . . 2 2 2 2 . . Power . | . . . . . . . . Propulsion . | . . . . . . . . Utility 6 | . . 2 1 1 2 . . Weapon 2 | . . . 1 1 . . . Parts Attached 91 | 3 8 11 12 31 10 13 3 Power 8 | . 1 3 . 3 1 . . Engine 8 | . 1 3 . 3 1 . . Core . | . . . . . . . . Reactor . | . . . . . . . . Propulsion 21 | 2 1 3 3 5 3 3 1 Treads 20 | 2 1 3 3 5 3 2 1 Leg 1 | . . . . . . 1 . Wheel . | . . . . . . . . Hover . | . . . . . . . . Flight . | . . . . . . . . Utility 31 | . 4 2 6 8 5 4 2 Device 12 | . . . 1 2 3 4 2 Storage 4 | . 3 . . 1 . . . Processor 7 | . . . 1 4 2 . . Hackware . | . . . . . . . . Protection 8 | . 1 2 4 1 . . . Artifact . | . . . . . . . . Weapon 31 | 1 2 3 3 15 1 6 . Energy Gun . | . . . . . . . . Energy Cannon 1 | . . 1 . . . . . Ballistic Gun 27 | 1 2 2 3 13 1 5 . Ballistic Cannon . | . . . . . . . . Launcher 3 | . . . . 2 . 1 . Special Weapon . | . . . . . . . . Impact Weapon . | . . . . . . . . Slashing Weapon . | . . . . . . . . Piercing Weapon . | . . . . . . . . Special Melee Weapon . | . . . . . . . . Unidentified Prototypes 5 | . . . . 2 2 . 1 Parts Lost 27 | . 1 2 5 11 . 4 4 Power 2 | . . 1 . 1 . . . Propulsion 7 | . . . 1 3 . 2 1 Utility 6 | . . . 2 3 . . 1 Weapon 12 | . 1 1 2 4 . 2 2 Highest Loss Streak 3 | . 1 1 2 2 . 3 2 Average Slot Usage (%) 95 | . 83 95 96 96 96 99 93 Engine 7 | . 10 10 9 6 6 6 6 Treads 16 | . 28 22 17 14 11 12 7 Device 5 | . . . 2 2 13 13 12 Storage 16 | . 22 22 18 15 13 13 13 Processor 15 | . . . 7 19 26 26 26 Protection 6 | . 3 21 14 5 . . . Ballistic Gun 25 | . 17 17 26 29 23 25 25 Naked Turns . | . . . . . . . . Heaviest Build 58 | 2 23 49 53 58 54 55 51 Greatest Support 80 | 40 40 40 40 42 56 60 80 Greatest Overweight (x) 15 | . . 1 2 2 2 15 1 Average Overweight (x) . | . . . . 1 . . . Largest Inventory Capacity 10 | 4 10 10 10 10 10 10 10 Average Capacity 9 | 4 7 10 10 10 10 10 10 Most Carried 10 | 2 2 3 10 10 10 10 10 Average Carried 6 | . . 1 4 6 9 9 8 Final Capacity 10 | 4 10 10 10 10 10 10 10 Final Carried 10 | . 1 3 10 10 10 9 9 Class Distribution -------------------- 41% | Scavenger-Gunner 15% | Mutant 11% | Tank 8% | Scavenger-Tank 8% | Gunner 7% | Commander-Gunner 7% | Scavenger-Mutant Dominant Class ---------------- Mutant | -10/Materials Scavenger-Mutant | -9/Materials Scavenger-Tank | -8/Materials Scavenger-Gunner | -7/Factory Scavenger-Gunner | -6/Factory Scavenger-Gunner | -6/Extension Gunner | -6/Cetus Resources | -11 -10 -9 -8 -7 -6 -6 -6 ----------- Run | Scr Mat Mat Mat Fac Fac Ext Cet Matter Collected 6399 | 248 366 374 848 2255 531 1533 244 Remotely 418 | . . . 418 . . . . Salvage Created 11644 | 92 496 1291 1873 3547 1019 2913 413 Parts 628 | 2 36 82 97 200 69 116 26 Haulers Intercepted 23 | . 2 3 4 4 3 7 . Recyclers Shooed 9 | . . . . 4 3 2 . Parts Field Recycled . | . . . . . . . . Retrieved Matter . | . . . . . . . . Parts Self-Destructed . | . . . . . . . . Prevented . | . . . . . . . . Kills | -11 -10 -9 -8 -7 -6 -6 -6 ------- Run | Scr Mat Mat Mat Fac Fac Ext Cet Combat Hostiles Destroyed 141 | . 9 19 37 40 9 22 5 Guns 135 | . 9 13 37 40 9 22 5 Cannons 5 | . . 5 . . . . . AOE 1 | . . 1 . . . . . Classes Destroyed 16 | 1 5 3 3 3 . 1 . Worker 11 | . . . . 10 . 1 . Builder 7 | . 1 . . 5 . 1 . Tunneler 3 | . . 2 . . 1 . . Hauler 23 | . 2 3 4 4 3 7 . Recycler 15 | 1 1 3 . 7 . 3 . Mechanic 1 | . . . . 1 . . . Operator 5 | . . . 1 3 1 . . Watcher 16 | . 3 2 2 6 2 . 1 Swarmer 24 | . 3 3 8 10 . . . Grunt 59 | . 6 8 18 12 . 13 2 Brawler 6 | . . 3 1 1 . 1 . Duelist 3 | . . . 1 1 . 1 . Sentry 30 | . . 5 7 8 4 6 . Hunter 5 | . . . 2 1 2 . . Programmer 10 | . . . . 7 3 . . Behemoth 1 | . . . . . . 1 . Cetus Guard 3 | . . . . . . . 3 Savage 1 | . . . . . . 1 . Butcher 1 | . . . . . . 1 . Best Kill Streak 13 | 1 7 6 7 13 4 3 3 Combat Bots Only 11 | . 3 6 7 11 2 3 3 Max Kills in Single Turn 3 | 1 1 2 3 2 1 1 1 Gunslinging 2 | . . . 2 1 . . . Exploded 1 | . . 1 . . . . . Melee . | . . . . . . . . Uniques/NPCs Destroyed 1 | . . . . . . 1 . A7 (-6/Extension) Combat | -11 -10 -9 -8 -7 -6 -6 -6 -------- Run | Scr Mat Mat Mat Fac Fac Ext Cet Damage Taken 6503 | . 453 748 1443 1998 207 940 714 Core 662 | . 62 101 152 205 22 51 69 Absorbed by Shields 50 | . . . . . . 50 . Core Remaining (%) 78 | 100 75 74 72 70 . . . Volleys Fired 528 | 6 57 67 99 149 33 91 26 Largest 4 | 1 2 2 3 4 4 4 4 Hottest 113 | 20 40 56 69 113 99 106 103 Shots Fired 1668 | 6 94 105 297 591 130 348 97 Gun 1655 | 6 94 94 297 589 130 348 97 Cannon 11 | . . 11 . . . . . Launcher 2 | . . . . 2 . . . Special . | . . . . . . . . Kinetic 1655 | 6 94 94 297 589 130 348 97 Thermal . | . . . . . . . . Explosive 2 | . . . . 2 . . . Electromagnetic 11 | . . 11 . . . . . Robot Hit Streak 80 | 3 35 53 47 39 33 56 80 Robot Miss Streak 2 | 1 2 1 2 2 2 2 1 Penetration Max . | . . . . . . . . Secondary Targets 35 | . 2 1 10 13 2 5 2 Max Gunslinging Chain 2 | . 1 1 2 1 1 1 1 Shots Hit Robots 1358 | 5 82 89 244 464 100 285 89 Core Hits 512 | 2 29 42 88 156 44 117 34 Critical Hits 15 | . . 4 1 4 1 5 . Critical Kills 5 | . . 3 1 . . 1 . Critical Parts Destroyed 9 | . . 1 . 4 1 3 . Melee Attacks . | . . . . . . . . Impact . | . . . . . . . . Slashing . | . . . . . . . . Piercing . | . . . . . . . . Sneak Attacks . | . . . . . . . . Combat Hostiles . | . . . . . . . . Follow-up Attacks . | . . . . . . . . Damage Inflicted 22230 | 63 922 1511 3632 7637 1687 5315 1463 Guns 21262 | 63 894 1183 3611 7108 1667 5273 1463 Cannons 221 | . . 221 . . . . . Explosions 569 | . . 56 . 513 . . . Melee . | . . . . . . . . Ramming 178 | . 28 51 21 16 20 42 . Kinetic 21262 | 63 894 1183 3611 7108 1667 5273 1463 Thermal 441 | . . 56 . 385 . . . Explosive 128 | . . . . 128 . . . Electromagnetic 221 | . . 221 . . . . . Impact . | . . . . . . . . Slashing . | . . . . . . . . Piercing . | . . . . . . . . Highest Corruption 3 | . . . . 3 . . . Average Corruption 2 | . . . . 2 . . . Corruption Purged . | . . . . . . . . Effects 39 | . . . . 39 . . . Message Errors 9 | . . . . 9 . . . Matter Fused 5 | . . . . 5 . . . Heat Flow Errors 5 | . . . . 5 . . . Energy Discharges 5 | . . . . 5 . . . Data Loss (minor) 3 | . . . . 3 . . . Targeting Errors 10 | . . . . 10 . . . Weapon Failures 2 | . . . . 2 . . . Overload Shots . | . . . . . . . . Overflow Damage 129 | . . . . 129 . . . Projectiles . | . . . . . . . . Explosions 129 | . . . . 129 . . . Melee . | . . . . . . . . Knockbacks 4 | . 1 . 1 . 1 1 . Impact 4 | . 1 . 1 . 1 1 . Kinetic . | . . . . . . . . Secondary . | . . . . . . . . Self-Inflicted Damage 17 | . . 10 . 6 . 1 . Shots 2 | . . 1 . 1 . . . Rammed 28 | . 7 12 2 3 . 4 . Targets Rammed 31 | . 8 12 2 4 1 4 . Kicked . | . . . . . . . . Crushed 3 | . 1 . . 1 1 . . Highest Temperature 326 | . 27 145 206 216 206 312 326 Average Temperature 55 | . 12 39 40 49 58 90 116 Received Heat Transfer 2454 | . 303 339 738 489 54 360 171 Effects 2 | . . . . . . 2 . Interference 2 | . . . . . . 2 . Siege Activations . | . . . . . . . . Robots Corrupted . | . . . . . . . . Combat Hostiles . | . . . . . . . . Parts Fried 3 | . . 1 . . . 2 . Impact Corruptions . | . . . . . . . . Robots Melted . | . . . . . . . . Combat Hostiles . | . . . . . . . . Parts Melted . | . . . . . . . . Heat Transferred 350 | . . 100 . 250 . . . Parts Sabotaged . | . . . . . . . . Parts Stolen . | . . . . . . . . Parts Stripped . | . . . . . . . . Power Chain Reactions 1 | . . 1 . . . . . Missiles Intercepted . | . . . . . . . . Alert | -11 -10 -9 -8 -7 -6 -6 -6 ------- Run | Scr Mat Mat Mat Fac Fac Ext Cet Peak Influence 843 | 5 174 419 740 541 701 843 360 Average Influence 261 | 1 72 250 431 217 298 321 318 Maximum Alert Level 3 | . . 2 3 2 3 3 1 Low Security (%) 42 | 100 100 27 10 43 52 35 . Level 1 35 | . . 56 26 46 . 41 100 Level 2 19 | . . 15 60 9 43 17 . Level 3 1 | . . . 2 . 3 5 . Level 4 . | . . . . . . . . Level 5 . | . . . . . . . . High Security . | . . . . . . . . Max Security . | . . . . . . . . Squads Dispatched 45 | . 1 1 11 16 6 10 . Investigation 17 | . 1 1 6 2 2 5 . Extermination 7 | . . . . 6 1 . . Reinforcement 12 | . . . 2 5 . 5 . Assault . | . . . . . . . . Garrison 9 | . . . 3 3 3 . . Intercept . | . . . . . . . . Construction Impeded 6 | . . . . 2 . 4 . Haulers Reinforced . | . . . . . . . . Stealth | -11 -10 -9 -8 -7 -6 -6 -6 --------- Run | Scr Mat Mat Mat Fac Fac Ext Cet Distress Signals 16 | . 1 3 6 1 1 4 . Communications Jammed . | . . . . . . . . Distress Signals . | . . . . . . . . Times Spotted 255 | . 17 26 63 69 13 54 13 Peak Tracking Total 8 | . 4 6 8 6 3 8 6 Tactical Retreats 25 | . 3 2 9 8 . 3 . Traps | -11 -10 -9 -8 -7 -6 -6 -6 ------- Run | Scr Mat Mat Mat Fac Fac Ext Cet Traps Triggered 6 | . 1 1 2 1 1 . . Indirectly . | . . . . . . . . Trap Hack Attempts . | . . . . . . . . Triggered . | . . . . . . . . Disarmed 6 | . 6 . . . . . . Reprogrammed . | . . . . . . . . Reused . | . . . . . . . . Traps Extracted . | . . . . . . . . Installed . | . . . . . . . . Triggered . | . . . . . . . . Machines | -11 -10 -9 -8 -7 -6 -6 -6 ---------- Run | Scr Mat Mat Mat Fac Fac Ext Cet Machines Disabled 21 | . . 1 2 15 . 3 . Max in Single Turn 14 | . . 1 1 14 . . . Garrison Access 2 | . . . 1 . 1 . . Machines Sabotaged . | . . . . . . . . Garrisons Compromised . | . . . . . . . . Overloaded Fab Kills . | . . . . . . . . Fab Network Shutdowns 1 | . . . . . 1 . . Hacking | -11 -10 -9 -8 -7 -6 -6 -6 --------- Run | Scr Mat Mat Mat Fac Fac Ext Cet Machines Accessed 48 | . 5 6 7 14 4 10 2 Terminals 32 | . 4 6 5 6 2 7 2 Fabricators 2 | . . . . 1 1 . . Repair Stations 3 | . . . . 2 . 1 . Recycling Units 6 | . 1 . 1 2 . 2 . Scanalyzers 2 | . . . . 2 . . . Garrison Access 3 | . . . 1 1 1 . . Total Hacks 137 | . 18 19 20 36 9 30 5 Successful 69 | . 12 10 11 17 5 14 . Failed 65 | . 5 8 8 19 4 16 5 Catastrophic 6 | . . 1 . 1 . 1 3 Database Lockouts 3 | . 1 1 1 . . . . Manual 62 | . 10 11 13 7 3 13 5 Terminals 97 | . 15 19 18 15 5 20 5 Fabricators 5 | . . . . 3 2 . . Repair Stations 11 | . . . . 6 . 5 . Recycling Units 12 | . 3 . 1 3 . 5 . Scanalyzers 7 | . . . . 7 . . . Garrison Access 5 | . . . 1 2 2 . . Terminal Hacks 48 | . 11 10 8 5 2 12 . Part Schematic 2 | . . . . 1 . 1 . Robot Analysis 5 | . 3 . 2 . . . . Prototype ID Bank 19 | . 3 5 2 2 1 6 . Open Door 3 | . . . . . 1 2 . Level Access Points 3 | . 1 1 . 1 . . . Terminal Index 2 | . . . . . . 2 . Unreport Threat 1 | . . . . 1 . . . Locate Traps 2 | . 1 1 . . . . . Disarm Traps 1 | . 1 . . . . . . Dispatch Records 3 | . 1 1 1 . . . . Transport Status 2 | . . 1 1 . . . . Recall Investigation 1 | . . . . . . 1 . Hauler Manifests 2 | . 1 1 . . . . . Registered Components 1 | . . . 1 . . . . Zone Layout 1 | . . . 1 . . . . Fabricator Hacks 3 | . . . . 1 2 . . Load Schematic 1 | . . . . . 1 . . Build 2 | . . . . 1 1 . . Repair Station Hacks 5 | . . . . 3 . 2 . Scan Component 3 | . . . . 2 . 1 . Repair 2 | . . . . 1 . 1 . Recycling Unit Hacks 4 | . 1 . 1 2 . . . Retrieve Components 4 | . 1 . 1 2 . . . Scanalyzer 6 | . . . . 6 . . . Insert Component 3 | . . . . 3 . . . Analyze 3 | . . . . 3 . . . Garrison Access Hacks 2 | . . . 1 . 1 . . Seal Access 2 | . . . 1 . 1 . . Unauthorized Hacks 6 | . . . 3 3 . . . Terminals 1 | . . . 1 . . . . Assimilate 1 | . . . 1 . . . . Fabricators . | . . . . . . . . Repair Stations . | . . . . . . . . Recycling Units . | . . . . . . . . Scanalyzers . | . . . . . . . . Garrison Access . | . . . . . . . . Data Cores Recovered 3 | . . . . 2 1 . . Used . | . . . . . . . . Hacking Detections 44 | . 4 6 5 13 4 10 2 Full Trace Events 11 | . . . 3 2 1 5 . Feedback Events . | . . . . . . . . Feedback Blocked . | . . . . . . . . Robot Schematics Acquired . | . . . . . . . . Robots Built . | . . . . . . . . Matter . | . . . . . . . . Time . | . . . . . . . . Total Robot Build Rating . | . . . . . . . . Part Schematics Acquired 5 | . . . . 4 . 1 . Parts Built 3 | . . . . 2 1 . . Matter 409 | . . . . 190 219 . . Time 105 | . . . . 47 58 . . Total Part Build Rating 13 | . . . . 10 3 . . Parts Repaired 2 | . . . . 1 . 1 . Time 62 | . . . . 32 . 30 . Parts Recycled . | . . . . . . . . Recycled Matter . | . . . . . . . . Retrieved Matter . | . . . . . . . . Retrieved Components 12 | . 3 . 1 8 . . . Parts Scanalyzed 3 | . . . . 3 . . . Part Schematics Acquired 3 | . . . . 3 . . . Parts Damaged . | . . . . . . . . Bothacking | -11 -10 -9 -8 -7 -6 -6 -6 ------------ Run | Scr Mat Mat Mat Fac Fac Ext Cet Used RIF Installer . | . . . . . . . . Robots Hacked . | . . . . . . . . Non-combat . | . . . . . . . . Combat . | . . . . . . . . Robot Hacks Applied . | . . . . . . . . Relay Couplers Released . | . . . . . . . . Robots Rewired 28 | . . . . 1 . 27 . Allies Hacked . | . . . . . . . . Hacks Repelled . | . . . . . . . . Allies | -11 -10 -9 -8 -7 -6 -6 -6 -------- Run | Scr Mat Mat Mat Fac Fac Ext Cet Total Allies 32 | . . . 1 1 . 30 . Largest Group 15 | . . . 1 1 . 15 4 Highest-Rated Group 480 | . . . 10 20 . 480 92 Highest-Rated Ally 156 | . . . 10 20 . 156 32 Total Orders . | . . . . . . . . Ally Attacks 260 | . . . . 10 . 246 4 Total Damage 5400 | . . . . 157 . 5201 42 Kills 40 | . . . . 1 . 38 1 Allies Corrupted 1 | . . . . . . 1 . Allies Melted . | . . . . . . . . Intel | -11 -10 -9 -8 -7 -6 -6 -6 ------- Run | Scr Mat Mat Mat Fac Fac Ext Cet Robot Analysis Total 5 | . 3 . 2 . . . . Derelict Logs Recovered . | . . . . . . . . Drone Launches . | . . . . . . . . Drone Recoveries . | . . . . . . . . Exploration | -11 -10 -9 -8 -7 -6 -6 -6 ------------- Run | Scr Mat Mat Mat Fac Fac Ext Cet Turns Passed 9815 | 78 1100 1027 1225 3236 762 2202 185 Spaces Moved 4388 | 43 578 453 467 1493 376 904 74 Core 8 | 7 . . . . . 1 . Treads 4372 | 36 578 453 467 1493 376 895 74 Legs 8 | . . . . . . 8 . Wheels . | . . . . . . . . Hover . | . . . . . . . . Flight . | . . . . . . . . Fastest Speed 50 | 50 160 160 160 152 160 160 160 Average Speed 169 | 142 160 177 181 174 170 161 163 Slowest Speed 800 | 160 160 180 200 200 200 800 180 Overloaded Moves . | . . . . . . . . Propulsion Burnouts . | . . . . . . . . Robots Hopped . | . . . . . . . . Cave-ins Triggered . | . . . . . . . . Exploration Rate (%) 46 | 3 72 41 49 52 15 91 51 Regions Visited 7 Branch Regions 2 Pre-discovered Areas . | . . . . . . . . Known Exits Taken 3 | . 1 1 . 1 . . . Unknown Exits Taken 4 | 1 . . 1 . 1 1 . Scrap Searched . | . . . . . . . . Spaces Dug . | . . . . . . . . Terrain Destroyed 43 | . . 3 . 40 . . . Melee . | . . . . . . . . Projectile . | . . . . . . . . AOE 43 | . . 3 . 40 . . . Actions | -11 -10 -9 -8 -7 -6 -6 -6 --------- Run | Scr Mat Mat Mat Fac Fac Ext Cet Total 5810 | 54 663 567 627 1808 456 1529 106 Wait 385 | . 1 2 12 66 10 294 . Move 4381 | 42 577 452 466 1492 375 903 74 Hop . | . . . . . . . . Pick Up 118 | 3 9 15 24 38 15 12 2 Fast Attach . | . . . . . . . . Attach 55 | 3 6 7 10 15 5 7 2 Detach 2 | . . . 1 . 1 . . Swap 36 | . 2 4 2 16 5 6 1 Drop 65 | . 3 8 11 23 11 8 1 Fire 528 | 6 57 67 99 149 33 91 26 Melee . | . . . . . . . . Ram . | . . . . . . . . Kick 1 | . . . . . . 1 . Crush 30 | . 8 12 2 4 1 3 . Escape Stasis 2 | . . . . 2 . . . Rewire 207 | . . . . 3 . 204 . Trap . | . . . . . . . . Miscellaneous . | . . . . . . . . Route ------- -11/Scrapyard -10/Materials (discovered 4 exits: *Mat x3 / [*Min]) -9/Materials (discovered 4 exits: *Mat x3 / [*Min]) -8/Materials (discovered 2 exits: *Fac x2) -7/Factory (discovered 5 exits: *Fac x4 / [*Low]) -6/Factory -6/Extension (discovered 2 exits: [*Fac] / *Cet) -6/Cetus History --------- Turn | Location | Event 24 | -11/Scrapyard | Discovered new exit (range 16) 79 | -11/Scrapyard | Entered Materials 305 | -10/Materials | Build established: Mutant 306 | -10/Materials | Identified exit to Materials 319 | -10/Materials | Discovered new exit (range 14) 476 | -10/Materials | Central database locked down 1179 | -10/Materials | Entered another Materials area 1179 | -9/Materials | Evolved 2 slots: Utility x2 1650 | -9/Materials | Discovered new exit (range 15) 1785 | -9/Materials | Build established: Scavenger-Mutant 2137 | -9/Materials | Discovered new exit (range 8) 2166 | -9/Materials | Identified exit to Materials 2166 | -9/Materials | Central database locked down 2206 | -9/Materials | Entered another Materials area 2206 | -8/Materials | Evolved 2 slots: Utility x1, Weapon x1 2478 | -8/Materials | Garrison activated, responded to threat 2672 | -8/Materials | Discovered new exit (range 15) 2930 | -8/Materials | Discovered new exit (range 16) 3028 | -8/Materials | Build established: Scavenger-Tank 3200 | -8/Materials | Central database locked down 3282 | -8/Materials | Destroyed 7 combat bots 3431 | -8/Materials | Entered Factory 3431 | -7/Factory | Evolved 2 slots: Utility x1, Weapon x1 3722 | -7/Factory | Build established: Tank 4750 | -7/Factory | Garrison activated, responded to threat 5101 | -7/Factory | Destroyed 11 combat bots 5417 | -7/Factory | Build established: Scavenger-Gunner 5558 | -7/Factory | Fabricated Matter Compressor (x2) 6229 | -7/Factory | Repaired Autogun 6251 | -7/Factory | Discovered new exit (range 16) 6260 | -7/Factory | Identified exit to Factory 6667 | -7/Factory | Entered another Factory area 6667 | -6/Factory | Evolved 2 slots: Utility x2 6956 | -6/Factory | Fabricated Enh. Autogun (x1) 7067 | -6/Factory | Local fabrication network quarantined 7244 | -6/Factory | Found Prototype Processor 7245 | -6/Factory | Identified Exp. Targeting Computer 7401 | -6/Factory | Discovered new exit (range 10) 7429 | -6/Factory | Entered Extension 7593 | -6/Extension | Spotted B-75 Beast 7979 | -6/Extension | Disrupted transfer network 8630 | -6/Extension | Rescued a captive Derelict 8631 | -6/Extension | Rescued a captive Derelict 8661 | -6/Extension | Rescued A7 8709 | -6/Extension | Repaired Enh. Autogun 8782 | -6/Extension | Spotted B-75 Beast 8804 | -6/Extension | Destroyed B-75 Beast 8807 | -6/Extension | Allies destroyed B-75 Beast 8808 | -6/Extension | Build established: Commander-Gunner 8834 | -6/Extension | Lost 3 parts (2n1w) 9206 | -6/Extension | Allies destroyed A7 9207 | -6/Extension | Extracted ID and sensor layout for unrecognized location from A7's data core 9344 | -6/Extension | Disrupted transfer network 9467 | -6/Extension | Discovered new exit (range 10) 9468 | -6/Extension | Discovered new exit (range 6) 9631 | -6/Extension | Entered Cetus 9631 | -6/Cetus | Accompanied by 4 allies 9649 | -6/Cetus | Spotted Cetus Guard 9649 | -6/Cetus | Spotted Cetus Guard 9649 | -6/Cetus | Spotted Cetus Guard 9649 | -6/Cetus | Spotted Cetus Guard 9657 | -6/Cetus | Allies destroyed Cetus Guard 9667 | -6/Cetus | Destroyed Cetus Guard 9679 | -6/Cetus | Destroyed Cetus Guard 9686 | -6/Cetus | Destroyed Cetus Guard 9816 | -6/Cetus | Self-destructed Last Messages --------------- 09692_ Acquired 65 matter. 09703_ Acquired 66 matter. 09706_ Acquired 47 matter. 09714_ Acquired Prototype Treads. 09715_ Dropped Imp. Medium Treads. 09715_ Identified Centrium Heavy Treads. 09718_ Acquired Prototype Protection. 09719_ Acquired 10 matter. 09736_ W-25 Informer destroyed. 09771_ Connecting with Cetus Terminal... 09771_ Current location identified: Cetus 09777_ Connecting with Cetus Terminal... 09795_ C-30 ARC bursts open, deploying its payload. 09795_ L-41 Fighter unfolds itself. 09795_ G-50 Soldier unfolds itself. 09797_ G-50 Soldier destroyed. 09802_ Battle Rifle destroyed. 09810_ C-30 ARC bursts open, deploying its payload. 09810_ G-50 Soldier unfolds itself. 09814_ Hvy. Machine Gun destroyed. Map ----- +----------------------------------------------------+ | ?????????????????????????????????????????????????? | | ?????????????????????????????????????????????????? | | ????? ?????????????????????????????????????????? | | ????? ?????????????????????????????????????????? | | ????# #????????????????????????????????????????? | | ????# #????????????????????????????????????????? | | ????# #????????????????????????????????????????? | | ????# #????????????????????????????????????????? | | ????# #????????????????????????????????????????? | | ????# #????????????????????????????????????????? | | ????# #????????????????????????????????????????? | | ????# #????????????????????????????????????????? | | ????# #????????????????????????????????????????? | | ????# #???????????#?############???????????????? | | ????# #??????????#""""" """ """"???????????????? | | ????# #??????????# " """"""" " ??????????????? | | ????# #??????????#"""""""""""""""#?????????????? | | ????# #??????????#""""" """ """""#????""???????? | | ????# #??????????#""""""" """""""#?? ""#??????? | | ????# #??????????#""" " " """#? ""#??????? | | ????# #????#####?#" """ """ "#" =*""#??????? | | ##### ######!g ### =%[ #??????? | | ! [![%g!!g ; [%%! + ???? | | % =%[[[%*%* ; ! ; ??? | | ! !*!%![ = b/ g +??????? | | #"############ ###" @ #??????? | | ###??????????#####?#" "" l """"""""#T #??????? | | ???????????????????######//###########???????????? | | ???????????????????#" " ""#?????????????????? | | ???????????????????###" """#?????????????????? | | ???????????????????#" " ""#?????????????????? | | ???????????????????###" """#?????????????????? | | ???????????????????#" "###?????????????????? | | ???????????????????#" """"#?????????????????? | | ???????????????????#" T"""#?????????????????? | | ???????????????????#" """"#?????????????????? | | ???????????????????### "###?????????????????? | | ???????????????????# """"#?????????????????? | | ???????????????????#" " T"""#?????????????????? | | ???????????????????#" """"#?????????????????? | | ???????????????????#" " " #"###?????????????????? | | ???????????????????# #""???????????????????? | | ???????????????????#""" """#"""??????????????????? | | ???????????????????#############?????????????????? | | ?????????????????????????????????????????????????? | | ?????????????????????????????????????????????????? | | ?????????????????????????????????????????????????? | | ?????????????????????????????????????????????????? | | ?????????????????????????????????????????????????? | | ?????????????????????????????????????????????????? | +----------------------------------------------------+ Best States ------------- Heat Dissipation 64 Energy Generation 19 Energy Capacity 500 Matter Stores 550 Matter Capacity 550 Sight Range 22 Terrain Scan Density 10 Armor Coverage 750 Resistance: KI 20 Resistance: TH 30 Resistance: EX 20 Resistance: EM 20 Resistance: I 20 Resistance: S 20 Resistance: P 20 Core Shielding 20 Weapon Cycling 15 Evasion (%) 40 Targeting Accuracy 12 Core Analysis 6 Recoil Reduction 4 Matter Filtering 30 Kinecelleration 30 Salvage Targeting 2 Offensive Hacking 10 Item Schematics ----------------- Enh. Optical Array | -7/Factory | Scanalyzed Enh. Autogun | -7/Factory | Hacked Core Analyzer | -7/Factory | Scanalyzed Imp. Cooling System | -7/Factory | Scanalyzed Adv. Hardlight Generator | -6/Extension | Hacked Robot Schematics ------------------ None Fabricated ------------ Matter Compressor | x2 | -7/Factory | Preloaded Enh. Autogun | x1 | -6/Factory Alien Tech Used ----------------- None Achievements -------------- None Challenges ------------ None Game ------ Seed DeepCoreTreads Manual? 0 Play Time 01:16:15 Cumulative 451.0 hours Start 2020.08.15 @ 21:48:57 End 2020.08.16 @ 18:26:26 Sessions 2 Manual Loads 0 Difficulty Adventurer Special Mode None Game No. 122 Rogue 1 Adventurer 121 Explorer 0 Win Type - Total 2 Types 1/0/0/1/0/0/0 Lore% 43 Gallery% 68 Achievement% 52 Wizard Run 0 Options --------- ASCII 0 Keyboard 0 Movement Numpad Keybinds 0 Fullscreen 1 Font 12/Smallcaps Map View 83x54 Tactical HUD 1 Map Filters NONE Filters NONE Steam X RUN: 41cdebc9-dd9d-4504-a7d8-50b765143165